[Event "Late-Titled-Tuesday-Blitz-May-07-2024"]
[Site "Chess.com"]
[Date "2024.05.07"]
[Round "2"]
[White "N_Mullodzhanov"]
[Black "Genghis_K"]
[Result "0-1"]
[WhiteElo "2555"]
[BlackElo "2956"]
[TimeControl "180+1"]
[EndTime "14:17:52 PDT"]
[Termination "Genghis_K won by checkmate"]

1. e4 {[%clk 0:03:00.9]} 1... e5 {[%clk 0:02:51.9]} 2. Nf3 {[%clk 0:03:00.8]}
2... Nc6 {[%clk 0:02:51.4]} 3. d4 {[%clk 0:03:01.2]} 3... exd4 {[%clk
0:02:52.3]} 4. Nxd4 {[%clk 0:03:02.1]} 4... Bc5 {[%clk 0:02:51.1]} 5. Be3 {[%clk
0:03:02.3]} 5... Qf6 {[%clk 0:02:50.6]} 6. c3 {[%clk 0:03:02.5]} 6... Nge7
{[%clk 0:02:50.5]} 7. Bc4 {[%clk 0:03:02.8]} 7... b6 {[%clk 0:02:50.6]} 8. O-O
{[%clk 0:02:59.9]} 8... Bb7 {[%clk 0:02:51.2]} 9. f4 {[%clk 0:02:52.9]} 9...
O-O-O {[%clk 0:02:40]} 10. b4 {[%clk 0:02:34.6]} 10... Bxd4 {[%clk 0:02:36.6]}
11. cxd4 {[%clk 0:02:34.8]} 11... Nxb4 {[%clk 0:02:22.9]} 12. a3 {[%clk
0:02:27.1]} 12... Nbc6 {[%clk 0:02:17.1]} 13. Nc3 {[%clk 0:02:23.7]} 13... Rhe8
{[%clk 0:02:08.7]} 14. Qd2 {[%clk 0:01:53.5]} 14... Na5 {[%clk 0:01:50.2]} 15.
Ba2 {[%clk 0:01:38.6]} 15... d5 {[%clk 0:01:49.4]} 16. e5 {[%clk 0:01:37]} 16...
Qg6 {[%clk 0:01:48.5]} 17. Bb1 {[%clk 0:01:31.6]} 17... Nc4 {[%clk 0:01:29.3]}
18. Qe2 {[%clk 0:01:18.6]} 18... Nf5 {[%clk 0:01:21.1]} 19. Bf2 {[%clk
0:01:10.8]} 19... h5 {[%clk 0:01:20]} 20. Qd3 {[%clk 0:00:46]} 20... Ne7 {[%clk
0:01:12.1]} 21. f5 {[%clk 0:00:33.6]} 21... Qg5 {[%clk 0:01:12.5]} 22. Ra2
{[%clk 0:00:28.7]} 22... f6 {[%clk 0:01:07]} 23. Qh3 {[%clk 0:00:28.3]} 23...
Kb8 {[%clk 0:01:02.7]} 24. Bh4 {[%clk 0:00:26.3]} 24... Qh6 {[%clk 0:00:59.9]}
25. Re2 {[%clk 0:00:21.5]} 25... Nc6 {[%clk 0:00:52.4]} 26. exf6 {[%clk
0:00:16.6]} 26... gxf6 {[%clk 0:00:52.9]} 27. Rfe1 {[%clk 0:00:14.4]} 27... Rxe2
{[%clk 0:00:50.9]} 28. Nxe2 {[%clk 0:00:14.8]} 28... Re8 {[%clk 0:00:47.8]} 29.
Qf3 {[%clk 0:00:12.1]} 29... Nd2 {[%clk 0:00:37.8]} 30. Qf2 {[%clk 0:00:12.4]}
30... Nxb1 {[%clk 0:00:29.4]} 31. Rxb1 {[%clk 0:00:13.3]} 31... Qd2 {[%clk
0:00:29]} 32. Re1 {[%clk 0:00:12.3]} 32... Ba6 {[%clk 0:00:27.4]} 33. Nf4 {[%clk
0:00:10.4]} 33... Rxe1+ {[%clk 0:00:26.3]} 34. Qxe1 {[%clk 0:00:10.8]} 34...
Qxf4 {[%clk 0:00:26.3]} 35. Bg3 {[%clk 0:00:11.3]} 35... Qxd4+ {[%clk
0:00:25.7]} 36. Kh1 {[%clk 0:00:11.9]} 36... Qe4 {[%clk 0:00:25.7]} 37. Qc1
{[%clk 0:00:08.7]} 37... Kb7 {[%clk 0:00:24.5]} 38. h3 {[%clk 0:00:08.8]} 38...
d4 {[%clk 0:00:23.1]} 39. Qh6 {[%clk 0:00:08.9]} 39... Bf1 {[%clk 0:00:21.7]}
40. Qd2 {[%clk 0:00:08.1]} 40... d3 {[%clk 0:00:20.6]} 41. a4 {[%clk 0:00:07.7]}
41... Nd4 {[%clk 0:00:20.5]} 42. a5 {[%clk 0:00:07.3]} 42... Ne2 {[%clk
0:00:20.3]} 43. a6+ {[%clk 0:00:07.8]} 43... Kxa6 {[%clk 0:00:19.2]} 44. Qa2+
{[%clk 0:00:07.7]} 44... Kb7 {[%clk 0:00:19.5]} 45. Kh2 {[%clk 0:00:04.3]} 45...
Qxg2# {[%clk 0:00:19.7]} 0-1

[Event "Late-Titled-Tuesday-Blitz-May-07-2024"]
[Site "Chess.com"]
[Date "2024.05.07"]
[Round "2"]
[White "Assumpcaos"]
[Black "Goryachkina"]
[Result "0-1"]
[WhiteElo "2174"]
[BlackElo "2705"]
[TimeControl "180+1"]
[EndTime "14:17:56 PDT"]
[Termination "Goryachkina won on time"]

1. d4 {[%clk 0:03:00.9]} 1... Nf6 {[%clk 0:02:59.6]} 2. c4 {[%clk 0:02:59.6]}
2... e6 {[%clk 0:02:59.8]} 3. Nc3 {[%clk 0:02:59.5]} 3... Bb4 {[%clk 0:02:59.5]}
4. e3 {[%clk 0:02:58.6]} 4... O-O {[%clk 0:02:58.9]} 5. Bd3 {[%clk 0:02:57.3]}
5... d5 {[%clk 0:02:58.8]} 6. Nf3 {[%clk 0:02:56]} 6... dxc4 {[%clk 0:02:58.5]}
7. Bxc4 {[%clk 0:02:55.5]} 7... c5 {[%clk 0:02:58.9]} 8. O-O {[%clk 0:02:54.5]}
8... Nc6 {[%clk 0:02:59.2]} 9. Qe2 {[%clk 0:02:51]} 9... cxd4 {[%clk 0:02:53.1]}
10. Rd1 {[%clk 0:02:49.9]} 10... Qe7 {[%clk 0:02:39.1]} 11. exd4 {[%clk
0:02:49.4]} 11... h6 {[%clk 0:02:32.1]} 12. Bf4 {[%clk 0:02:45.9]} 12... Bd6
{[%clk 0:02:29.8]} 13. Be5 {[%clk 0:02:44.2]} 13... Bd7 {[%clk 0:02:16.8]} 14.
Rac1 {[%clk 0:02:41.9]} 14... Rad8 {[%clk 0:02:12.8]} 15. Nb5 {[%clk 0:02:34.9]}
15... Bb8 {[%clk 0:02:11.8]} 16. Bxb8 {[%clk 0:01:57]} 16... Rxb8 {[%clk
0:02:10.8]} 17. Nc3 {[%clk 0:01:44.6]} 17... Rfd8 {[%clk 0:02:04.6]} 18. d5
{[%clk 0:01:34.6]} 18... exd5 {[%clk 0:02:00.3]} 19. Nxd5 {[%clk 0:01:32.3]}
19... Nxd5 {[%clk 0:01:56.3]} 20. Rxd5 {[%clk 0:01:31.7]} 20... Qxe2 {[%clk
0:01:48.1]} 21. Bxe2 {[%clk 0:01:31.5]} 21... Be6 {[%clk 0:01:46.3]} 22. Rxd8+
{[%clk 0:01:29.3]} 22... Rxd8 {[%clk 0:01:47.2]} 23. a3 {[%clk 0:01:20.6]} 23...
Nd4 {[%clk 0:01:36.6]} 24. Nxd4 {[%clk 0:01:18.7]} 24... Rxd4 {[%clk 0:01:37.5]}
25. Rd1 {[%clk 0:01:03]} 25... Rxd1+ {[%clk 0:01:36.8]} 26. Bxd1 {[%clk
0:01:02.3]} 26... Kf8 {[%clk 0:01:37.2]} 27. Kf1 {[%clk 0:01:01.9]} 27... Ke7
{[%clk 0:01:37.4]} 28. Ke2 {[%clk 0:01:01.4]} 28... Kd6 {[%clk 0:01:37.7]} 29.
Ke3 {[%clk 0:00:57.4]} 29... Kc5 {[%clk 0:01:32.7]} 30. Be2 {[%clk 0:00:44.6]}
30... a5 {[%clk 0:01:28.6]} 31. Bf3 {[%clk 0:00:39.9]} 31... b5 {[%clk
0:01:27.6]} 32. Kd3 {[%clk 0:00:38.4]} 32... b4 {[%clk 0:01:27.2]} 33. axb4+
{[%clk 0:00:37.1]} 33... Kxb4 {[%clk 0:01:26.6]} 34. Kc2 {[%clk 0:00:23.6]}
34... Kc4 {[%clk 0:01:23.5]} 35. Be2+ {[%clk 0:00:19.8]} 35... Kd4 {[%clk
0:01:23.7]} 36. Kd2 {[%clk 0:00:17.8]} 36... g5 {[%clk 0:01:21]} 37. g3 {[%clk
0:00:17.3]} 37... f5 {[%clk 0:01:16.7]} 38. Bb5 {[%clk 0:00:16.6]} 38... f4
{[%clk 0:01:12.9]} 39. Bc6 {[%clk 0:00:15.2]} 39... Kc4 {[%clk 0:01:05.1]} 40.
Kc2 {[%clk 0:00:11.8]} 40... Bf5+ {[%clk 0:01:04.8]} 41. Kd2 {[%clk 0:00:11]}
41... Kb3 {[%clk 0:01:03.5]} 42. Kc1 {[%clk 0:00:11]} 42... Kc4 {[%clk
0:00:55.8]} 43. Bb7 {[%clk 0:00:10]} 43... Kd3 {[%clk 0:00:53.7]} 44. Kd1 {[%clk
0:00:09.4]} 44... Bg4+ {[%clk 0:00:51.5]} 45. f3 {[%clk 0:00:06.2]} 45... Be6
{[%clk 0:00:46.1]} 46. gxf4 {[%clk 0:00:04.4]} 46... gxf4 {[%clk 0:00:46]} 47.
Be4+ {[%clk 0:00:02]} 47... Ke3 {[%clk 0:00:36.9]} 48. Ke1 {[%clk 0:00:00.7]}
48... Bc4 {[%clk 0:00:35.3]} 0-1

[Event "Late-Titled-Tuesday-Blitz-May-07-2024"]
[Site "Chess.com"]
[Date "2024.05.07"]
[Round "2"]
[White "Hasangatin_Ramil"]
[Black "Oleksandr_Bortnyk"]
[Result "0-1"]
[WhiteElo "2666"]
[BlackElo "3062"]
[TimeControl "180+1"]
[EndTime "14:17:58 PDT"]
[Termination "Oleksandr_Bortnyk won by resignation"]

1. e4 {[%clk 0:03:00.9]} 1... Nf6 {[%clk 0:02:55.8]} 2. d3 {[%clk 0:02:56.1]}
2... d5 {[%clk 0:02:55.3]} 3. Nd2 {[%clk 0:02:55.4]} 3... e5 {[%clk 0:02:54]} 4.
Ngf3 {[%clk 0:02:55.7]} 4... Nc6 {[%clk 0:02:54.2]} 5. c3 {[%clk 0:02:56]} 5...
Bd6 {[%clk 0:02:53.4]} 6. b4 {[%clk 0:02:55.3]} 6... a6 {[%clk 0:02:53.4]} 7. a3
{[%clk 0:02:55.7]} 7... O-O {[%clk 0:02:53.5]} 8. Qc2 {[%clk 0:02:55.5]} 8...
Qe7 {[%clk 0:02:54]} 9. g3 {[%clk 0:02:55.6]} 9... Bg4 {[%clk 0:02:52.6]} 10.
Bg2 {[%clk 0:02:55.7]} 10... Rad8 {[%clk 0:02:52.9]} 11. O-O {[%clk 0:02:55.9]}
11... Qd7 {[%clk 0:02:47.2]} 12. Bb2 {[%clk 0:02:54.7]} 12... Bh3 {[%clk
0:02:47]} 13. Nh4 {[%clk 0:02:49.9]} 13... Ne7 {[%clk 0:02:46.2]} 14. Rad1
{[%clk 0:02:46.2]} 14... Ng6 {[%clk 0:02:44.6]} 15. Nxg6 {[%clk 0:02:46.2]}
15... hxg6 {[%clk 0:02:41.8]} 16. Nf3 {[%clk 0:02:45]} 16... c6 {[%clk
0:02:38.5]} 17. c4 {[%clk 0:02:40.5]} 17... d4 {[%clk 0:02:36.7]} 18. c5 {[%clk
0:02:39.5]} 18... Bc7 {[%clk 0:02:36.8]} 19. Nd2 {[%clk 0:02:32.4]} 19... a5
{[%clk 0:02:35.3]} 20. Nc4 {[%clk 0:02:32.2]} 20... axb4 {[%clk 0:02:34.2]} 21.
axb4 {[%clk 0:02:33.1]} 21... Ra8 {[%clk 0:02:33.9]} 22. Ra1 {[%clk 0:02:33]}
22... Nh5 {[%clk 0:02:27.6]} 23. Qe2 {[%clk 0:02:24.8]} 23... Bxg2 {[%clk
0:02:16.8]} 24. Kxg2 {[%clk 0:02:24.5]} 24... Qe6 {[%clk 0:02:15.4]} 25. Rxa8
{[%clk 0:02:17.2]} 25... Rxa8 {[%clk 0:02:16.3]} 26. Ra1 {[%clk 0:02:17.1]}
26... Rb8 {[%clk 0:02:03.6]} 27. Ra7 {[%clk 0:02:10.3]} 27... Nf6 {[%clk
0:01:58.4]} 28. Bc1 {[%clk 0:02:07.1]} 28... Nd7 {[%clk 0:01:57.1]} 29. Qa2
{[%clk 0:02:00.8]} 29... f5 {[%clk 0:01:52.4]} 30. Nd2 {[%clk 0:01:52.8]} 30...
Qxa2 {[%clk 0:01:49.7]} 31. Rxa2 {[%clk 0:01:53.7]} 31... Kf7 {[%clk 0:01:48.2]}
32. f3 {[%clk 0:01:51.2]} 32... Ke6 {[%clk 0:01:47.8]} 33. Nc4 {[%clk
0:01:51.3]} 33... b5 {[%clk 0:01:44.9]} 34. cxb6 {[%clk 0:01:44.7]} 34... Nxb6
{[%clk 0:01:29.5]} 35. Na5 {[%clk 0:01:43.9]} 35... c5 {[%clk 0:01:30.1]} 36.
Nc6 {[%clk 0:01:34.7]} 36... Rb7 {[%clk 0:01:30.1]} 37. Ra6 {[%clk 0:01:24.6]}
37... cxb4 {[%clk 0:01:21.5]} 38. Nxb4 {[%clk 0:01:24.4]} 38... Bd6 {[%clk
0:01:13]} 39. Bd2 {[%clk 0:01:19.3]} 39... Nd7 {[%clk 0:01:02.8]} 40. Nc6 {[%clk
0:01:08.3]} 40... Rb2 {[%clk 0:01:01.8]} 41. Nd8+ {[%clk 0:00:58]} 41... Ke7
{[%clk 0:01:02.1]} 42. Nc6+ {[%clk 0:00:55.2]} 42... Ke8 {[%clk 0:01:02.7]} 43.
Ra8+ {[%clk 0:00:37.9]} 43... Kf7 {[%clk 0:01:02.5]} 44. Rd8 {[%clk 0:00:35.7]}
44... Rxd2+ {[%clk 0:01:00.9]} 45. Kh3 {[%clk 0:00:35.9]} 45... Ke6 {[%clk
0:00:46.5]} 46. Re8+ {[%clk 0:00:34.8]} 46... Kf6 {[%clk 0:00:45.2]} 47. Rd8
{[%clk 0:00:35.4]} 47... Rc2 {[%clk 0:00:45.3]} 48. Na5 {[%clk 0:00:20.4]} 48...
Ke7 {[%clk 0:00:41.2]} 49. Rg8 {[%clk 0:00:20.3]} 49... Kf6 {[%clk 0:00:34.7]}
50. Nc4 {[%clk 0:00:12.2]} 50... Bf8 {[%clk 0:00:32.6]} 51. f4 {[%clk 0:00:09]}
51... Rxc4 {[%clk 0:00:32.1]} 52. dxc4 {[%clk 0:00:08.3]} 52... d3 {[%clk
0:00:33]} 0-1

[Event "Late-Titled-Tuesday-Blitz-May-07-2024"]
[Site "Chess.com"]
[Date "2024.05.07"]
[Round "2"]
[White "AreYouTokkieToMe"]
[Black "jlf287"]
[Result "1-0"]
[WhiteElo "2319"]
[BlackElo "2521"]
[TimeControl "180+1"]
[EndTime "14:17:58 PDT"]
[Termination "AreYouTokkieToMe won on time"]

1. c4 {[%clk 0:03:00.9]} 1... e6 {[%clk 0:02:59.5]} 2. g3 {[%clk 0:03:00.6]}
2... d5 {[%clk 0:03:00]} 3. Bg2 {[%clk 0:03:01.2]} 3... Nf6 {[%clk 0:03:00.5]}
4. Nf3 {[%clk 0:03:01.6]} 4... Be7 {[%clk 0:03:01.2]} 5. O-O {[%clk 0:03:01.9]}
5... O-O {[%clk 0:03:01.9]} 6. Qc2 {[%clk 0:03:01.8]} 6... c6 {[%clk 0:03:00.1]}
7. d4 {[%clk 0:03:01.8]} 7... b6 {[%clk 0:02:57.4]} 8. Nbd2 {[%clk 0:03:02]}
8... Bb7 {[%clk 0:02:55.9]} 9. e4 {[%clk 0:03:01.9]} 9... Nbd7 {[%clk
0:02:56.6]} 10. cxd5 {[%clk 0:02:59.9]} 10... exd5 {[%clk 0:02:52.9]} 11. e5
{[%clk 0:02:59.5]} 11... Ne8 {[%clk 0:02:53]} 12. Re1 {[%clk 0:02:56.4]} 12...
Nc7 {[%clk 0:02:52.9]} 13. Nf1 {[%clk 0:02:55.5]} 13... Ne6 {[%clk 0:02:48]} 14.
Ne3 {[%clk 0:02:47.7]} 14... g6 {[%clk 0:02:44.5]} 15. h4 {[%clk 0:02:45.1]}
15... Rc8 {[%clk 0:02:38.8]} 16. Qd3 {[%clk 0:02:40.9]} 16... c5 {[%clk
0:02:05.9]} 17. Ng4 {[%clk 0:02:33.5]} 17... cxd4 {[%clk 0:01:57]} 18. Nxd4
{[%clk 0:02:09]} 18... Ndc5 {[%clk 0:01:47.6]} 19. Qd1 {[%clk 0:01:56]} 19...
Nxd4 {[%clk 0:01:43.7]} 20. Qxd4 {[%clk 0:01:55.2]} 20... Ne6 {[%clk 0:01:44.1]}
21. Qd1 {[%clk 0:01:50.2]} 21... Rc7 {[%clk 0:01:35.4]} 22. Bd2 {[%clk
0:01:18.5]} 22... Rd7 {[%clk 0:01:34.5]} 23. Rc1 {[%clk 0:01:17.1]} 23... Nc5
{[%clk 0:01:27.3]} 24. Bh6 {[%clk 0:01:10]} 24... Re8 {[%clk 0:01:24]} 25. Qd4
{[%clk 0:01:07.7]} 25... Ne6 {[%clk 0:01:14]} 26. Qd2 {[%clk 0:01:07.3]} 26...
a5 {[%clk 0:00:55.5]} 27. a3 {[%clk 0:01:07]} 27... Nc5 {[%clk 0:00:50.1]} 28.
Bg5 {[%clk 0:01:04.6]} 28... Ne4 {[%clk 0:00:35.5]} 29. Bxe4 {[%clk 0:01:03.8]}
29... dxe4 {[%clk 0:00:35.6]} 30. Qf4 {[%clk 0:01:04]} 30... Bxg5 {[%clk
0:00:29.2]} 31. hxg5 {[%clk 0:01:03.3]} 31... Rde7 {[%clk 0:00:11.8]} 32. Nf6+
{[%clk 0:01:00.8]} 32... Kg7 {[%clk 0:00:11.9]} 33. Qh4 {[%clk 0:00:54.8]} 33...
h5 {[%clk 0:00:12.1]} 34. gxh6+ {[%clk 0:00:54]} 34... Kh8 {[%clk 0:00:12.2]}
35. Nxe8 {[%clk 0:00:52.4]} 35... Rxe8 {[%clk 0:00:11]} 36. Qxd8 {[%clk
0:00:47.1]} 36... Rxd8 {[%clk 0:00:11.9]} 37. Rc7 {[%clk 0:00:46.7]} 37... Ba6
{[%clk 0:00:07]} 38. Rxf7 {[%clk 0:00:42.5]} 38... Re8 {[%clk 0:00:06.4]} 39.
Rc1 {[%clk 0:00:41.4]} 39... Rxe5 {[%clk 0:00:05.1]} 40. Rcc7 {[%clk 0:00:39.3]}
40... Re8 {[%clk 0:00:02]} 41. Rh7+ {[%clk 0:00:33.9]} 41... Kg8 {[%clk
0:00:01.9]} 42. Rhg7+ {[%clk 0:00:34.3]} 42... Kh8 {[%clk 0:00:01.2]} 43. Rxg6
{[%clk 0:00:32.7]} 43... Bd3 {[%clk 0:00:01.5]} 44. Rxb6 {[%clk 0:00:31.5]}
44... e3 {[%clk 0:00:00.7]} 45. fxe3 {[%clk 0:00:30.8]} 45... Be4 {[%clk
0:00:01.5]} 46. Kh2 {[%clk 0:00:25]} 46... Rf8 {[%clk 0:00:00.8]} 47. g4 {[%clk
0:00:24.7]} 1-0

[Event "Late-Titled-Tuesday-Blitz-May-07-2024"]
[Site "Chess.com"]
[Date "2024.05.07"]
[Round "2"]
[White "Mikayel99"]
[Black "super_emi_26"]
[Result "1-0"]
[WhiteElo "2598"]
[BlackElo "2845"]
[TimeControl "180+1"]
[EndTime "14:17:59 PDT"]
[Termination "Mikayel99 won by resignation"]

1. e4 {[%clk 0:03:00.9]} 1... g6 {[%clk 0:02:58.8]} 2. d4 {[%clk 0:03:00]} 2...
Bg7 {[%clk 0:02:59.1]} 3. Nc3 {[%clk 0:03:00.5]} 3... d6 {[%clk 0:02:59.5]} 4.
Nf3 {[%clk 0:03:00.9]} 4... a6 {[%clk 0:03:00.1]} 5. a4 {[%clk 0:03:00.6]} 5...
Nf6 {[%clk 0:03:00.4]} 6. Be2 {[%clk 0:03:01]} 6... O-O {[%clk 0:03:00.9]} 7.
O-O {[%clk 0:03:01.4]} 7... Bg4 {[%clk 0:03:01.3]} 8. h3 {[%clk 0:03:01.5]} 8...
Bxf3 {[%clk 0:03:01]} 9. Bxf3 {[%clk 0:03:02.4]} 9... Nc6 {[%clk 0:03:01.5]} 10.
d5 {[%clk 0:03:01.6]} 10... Ne5 {[%clk 0:02:59.8]} 11. Be2 {[%clk 0:03:01.7]}
11... c6 {[%clk 0:03:00.5]} 12. Be3 {[%clk 0:02:55.8]} 12... cxd5 {[%clk
0:03:00.5]} 13. exd5 {[%clk 0:02:55.8]} 13... Rc8 {[%clk 0:03:01]} 14. a5 {[%clk
0:02:45]} 14... Nc4 {[%clk 0:03:00.5]} 15. Bxc4 {[%clk 0:02:44.9]} 15... Rxc4
{[%clk 0:03:01.4]} 16. Re1 {[%clk 0:02:40.8]} 16... Qd7 {[%clk 0:03:01.3]} 17.
Qd3 {[%clk 0:02:24.4]} 17... Rfc8 {[%clk 0:03:01.5]} 18. Re2 {[%clk 0:02:13.8]}
18... Qe8 {[%clk 0:02:56.2]} 19. Bb6 {[%clk 0:02:07.3]} 19... Nd7 {[%clk
0:02:55.2]} 20. Rae1 {[%clk 0:02:03.7]} 20... Be5 {[%clk 0:02:47]} 21. Ne4
{[%clk 0:01:55.3]} 21... Nxb6 {[%clk 0:02:41.5]} 22. axb6 {[%clk 0:01:56.2]}
22... Qb5 {[%clk 0:02:32.5]} 23. c3 {[%clk 0:01:48.7]} 23... Qxb6 {[%clk
0:02:30.6]} 24. Ng5 {[%clk 0:01:44.3]} 24... Bf6 {[%clk 0:02:28.5]} 25. Ne4
{[%clk 0:01:42.8]} 25... Be5 {[%clk 0:02:28.7]} 26. Nd2 {[%clk 0:01:34.2]} 26...
Rf4 {[%clk 0:02:24.7]} 27. g3 {[%clk 0:01:31.7]} 27... Ra4 {[%clk 0:02:20.5]}
28. Kg2 {[%clk 0:01:30.7]} 28... Qxb2 {[%clk 0:02:13.8]} 29. Nc4 {[%clk
0:01:25.5]} 29... Qxe2 {[%clk 0:02:04.5]} 30. Rxe2 {[%clk 0:01:14.4]} 30...
Raxc4 {[%clk 0:02:04.2]} 31. Qb1 {[%clk 0:01:15]} 31... b5 {[%clk 0:02:04]} 32.
Ra2 {[%clk 0:01:14.7]} 32... Ra8 {[%clk 0:01:57.6]} 33. h4 {[%clk 0:01:10.9]}
33... Rxc3 {[%clk 0:01:55.8]} 34. h5 {[%clk 0:01:10.9]} 34... Kg7 {[%clk
0:01:52.3]} 35. Qb4 {[%clk 0:01:02.2]} 35... Rc4 {[%clk 0:01:49.9]} 36. Qd2
{[%clk 0:01:02.5]} 36... Rcc8 {[%clk 0:01:45.3]} 37. h6+ {[%clk 0:01:02.6]}
37... Kg8 {[%clk 0:01:45.5]} 38. Qa5 {[%clk 0:00:57.4]} 38... Rab8 {[%clk
0:01:42.5]} 39. Qb4 {[%clk 0:00:45.3]} 39... Rc4 {[%clk 0:01:41.2]} 40. Qb3
{[%clk 0:00:44.9]} 40... Rc3 {[%clk 0:01:34]} 41. Qb4 {[%clk 0:00:38.1]} 41...
Rc4 {[%clk 0:01:32.8]} 42. Qb3 {[%clk 0:00:37.9]} 42... Rb6 {[%clk 0:01:33.3]}
43. Rc2 {[%clk 0:00:29.4]} 43... Rxc2 {[%clk 0:01:23.9]} 44. Qxc2 {[%clk
0:00:30.3]} 44... Rb8 {[%clk 0:01:23.9]} 45. Qc7 {[%clk 0:00:28.7]} 45... Re8
{[%clk 0:01:24.2]} 46. Qc6 {[%clk 0:00:28.7]} 46... Kf8 {[%clk 0:01:24.3]} 47.
Qxa6 {[%clk 0:00:28.3]} 47... b4 {[%clk 0:01:24.9]} 48. Qb7 {[%clk 0:00:24.1]}
48... Bc3 {[%clk 0:01:25]} 49. f4 {[%clk 0:00:21.9]} 49... f5 {[%clk 0:01:25.5]}
50. Kf3 {[%clk 0:00:20.7]} 50... Kf7 {[%clk 0:01:25.9]} 51. g4 {[%clk
0:00:19.9]} 51... fxg4+ {[%clk 0:01:26.5]} 52. Kxg4 {[%clk 0:00:20.8]} 52... Kf6
{[%clk 0:01:27]} 53. Qd7 {[%clk 0:00:20.7]} 53... Kf7 {[%clk 0:01:26.4]} 54. f5
{[%clk 0:00:19.2]} 54... b3 {[%clk 0:01:10.5]} 55. Qe6+ {[%clk 0:00:17.5]} 55...
Kf8 {[%clk 0:01:10.5]} 56. fxg6 {[%clk 0:00:15.1]} 56... hxg6 {[%clk 0:01:10.8]}
57. h7 {[%clk 0:00:15]} 57... Kg7 {[%clk 0:01:09.5]} 58. Qd7 {[%clk 0:00:13.9]}
58... Rh8 {[%clk 0:00:58.4]} 59. Qxe7+ {[%clk 0:00:14]} 59... Kh6 {[%clk
0:00:59]} 60. Qh4+ {[%clk 0:00:13.2]} 60... Kg7 {[%clk 0:00:59.5]} 61. Qe7+
{[%clk 0:00:13.5]} 61... Kh6 {[%clk 0:01:00.1]} 62. Qe3+ {[%clk 0:00:13.9]}
62... Kg7 {[%clk 0:00:58.3]} 63. Qxc3+ {[%clk 0:00:14.3]} 63... Kxh7 {[%clk
0:00:58.8]} 64. Qxb3 {[%clk 0:00:14.7]} 64... Rf8 {[%clk 0:00:58.8]} 65. Qb7+
{[%clk 0:00:13.7]} 65... Kg8 {[%clk 0:00:59.2]} 66. Qe7 {[%clk 0:00:13.7]} 66...
Rf5 {[%clk 0:00:58]} 67. Qxd6 {[%clk 0:00:13.3]} 67... Kg7 {[%clk 0:00:58.7]}
68. Qe6 {[%clk 0:00:13.8]} 68... Rf6 {[%clk 0:00:59.6]} 69. Qe5 {[%clk 0:00:14]}
69... Kf7 {[%clk 0:01:00.3]} 70. d6 {[%clk 0:00:13.8]} 70... Re6 {[%clk
0:01:00.9]} 71. Qd5 {[%clk 0:00:13.8]} 71... Kf6 {[%clk 0:01:01.5]} 72. d7
{[%clk 0:00:13.9]} 1-0

[Event "Late-Titled-Tuesday-Blitz-May-07-2024"]
[Site "Chess.com"]
[Date "2024.05.07"]
[Round "2"]
[White "HeroWilczek"]
[Black "Denisenko_Denis"]
[Result "0-1"]
[WhiteElo "2543"]
[BlackElo "2384"]
[TimeControl "180+1"]
[EndTime "14:17:59 PDT"]
[Termination "Denisenko_Denis won by resignation"]

1. Nf3 {[%clk 0:03:00.9]} 1... d5 {[%clk 0:02:58.2]} 2. b3 {[%clk 0:03:00.4]}
2... Nf6 {[%clk 0:02:57.6]} 3. Bb2 {[%clk 0:02:59.9]} 3... Bf5 {[%clk
0:02:57.9]} 4. e3 {[%clk 0:02:56.1]} 4... e6 {[%clk 0:02:58.2]} 5. c4 {[%clk
0:02:53.1]} 5... Be7 {[%clk 0:02:57.9]} 6. Be2 {[%clk 0:02:51.4]} 6... h6 {[%clk
0:02:57.4]} 7. O-O {[%clk 0:02:51.5]} 7... O-O {[%clk 0:02:56.6]} 8. h3 {[%clk
0:02:49.1]} 8... c6 {[%clk 0:02:56.3]} 9. d3 {[%clk 0:02:45.1]} 9... Nbd7 {[%clk
0:02:55.9]} 10. Ne5 {[%clk 0:02:43.3]} 10... Nxe5 {[%clk 0:02:55.1]} 11. Bxe5
{[%clk 0:02:44.2]} 11... a5 {[%clk 0:02:52.5]} 12. Nd2 {[%clk 0:02:42.5]} 12...
a4 {[%clk 0:02:51.8]} 13. Nf3 {[%clk 0:02:39.1]} 13... Nd7 {[%clk 0:02:50.6]}
14. Bb2 {[%clk 0:02:35.3]} 14... axb3 {[%clk 0:02:44]} 15. axb3 {[%clk 0:02:35]}
15... Bf6 {[%clk 0:02:43.5]} 16. Qd2 {[%clk 0:02:31.9]} 16... Qb6 {[%clk
0:02:40]} 17. b4 {[%clk 0:02:22.8]} 17... dxc4 {[%clk 0:02:22.5]} 18. dxc4
{[%clk 0:02:23.7]} 18... Bxb2 {[%clk 0:02:19.5]} 19. Qxb2 {[%clk 0:02:22.6]}
19... Rfd8 {[%clk 0:02:06.2]} 20. Rfd1 {[%clk 0:02:08.7]} 20... Nf6 {[%clk
0:01:56.3]} 21. Nd4 {[%clk 0:01:52]} 21... Bg6 {[%clk 0:01:54.7]} 22. Bf3 {[%clk
0:01:49.6]} 22... Be4 {[%clk 0:01:52.9]} 23. c5 {[%clk 0:01:44.2]} 23... Qc7
{[%clk 0:01:52.6]} 24. Rxa8 {[%clk 0:01:41.2]} 24... Rxa8 {[%clk 0:01:52]} 25.
b5 {[%clk 0:01:26.7]} 25... Bxf3 {[%clk 0:01:48]} 26. Nxf3 {[%clk 0:01:27.6]}
26... cxb5 {[%clk 0:01:46.1]} 27. Qxb5 {[%clk 0:01:28.5]} 27... Ra5 {[%clk
0:01:44.7]} 28. Qb6 {[%clk 0:01:15.7]} 28... Rxc5 {[%clk 0:01:42.9]} 29. Qb1
{[%clk 0:01:06.1]} 29... Nd5 {[%clk 0:01:37.1]} 30. Qb2 {[%clk 0:00:56.5]} 30...
b5 {[%clk 0:01:25.1]} 31. e4 {[%clk 0:00:53]} 31... Nf4 {[%clk 0:01:24.3]} 32.
Nd4 {[%clk 0:00:50.9]} 32... Qe5 {[%clk 0:01:06.9]} 33. Qb1 {[%clk 0:00:45.1]}
33... Rc4 {[%clk 0:00:56.7]} 34. Nxb5 {[%clk 0:00:42.1]} 34... Qxe4 {[%clk
0:00:51.4]} 35. Qxe4 {[%clk 0:00:38.2]} 35... Rxe4 {[%clk 0:00:52.3]} 36. Rd8+
{[%clk 0:00:37.3]} 36... Kh7 {[%clk 0:00:51.1]} 37. Nd6 {[%clk 0:00:38]} 37...
Re1+ {[%clk 0:00:46.3]} 38. Kh2 {[%clk 0:00:38.5]} 38... Kg6 {[%clk 0:00:45.3]}
39. Kg3 {[%clk 0:00:35.6]} 39... Nh5+ {[%clk 0:00:44.6]} 40. Kf3 {[%clk
0:00:35]} 40... Rd1 {[%clk 0:00:41.4]} 41. Nb7 {[%clk 0:00:31.2]} 41... Rxd8
{[%clk 0:00:40.3]} 42. Nxd8 {[%clk 0:00:32.1]} 42... e5 {[%clk 0:00:39.1]} 43.
Nc6 {[%clk 0:00:31.8]} 43... f6 {[%clk 0:00:38.9]} 44. Ke4 {[%clk 0:00:31.7]}
44... Kf7 {[%clk 0:00:36.3]} 45. g3 {[%clk 0:00:30.3]} 45... g6 {[%clk
0:00:33.5]} 46. h4 {[%clk 0:00:23.5]} 46... Ng7 {[%clk 0:00:32.3]} 47. Nb4
{[%clk 0:00:22.1]} 47... Ne6 {[%clk 0:00:31.8]} 48. Nd3 {[%clk 0:00:22.2]} 48...
h5 {[%clk 0:00:31.1]} 49. f4 {[%clk 0:00:22.2]} 49... exf4 {[%clk 0:00:30.9]}
50. gxf4 {[%clk 0:00:23.1]} 50... Ng7 {[%clk 0:00:30.6]} 51. Ne1 {[%clk
0:00:20.3]} 51... Nf5 {[%clk 0:00:30.3]} 52. Nf3 {[%clk 0:00:21.1]} 52... Ke6
{[%clk 0:00:30.3]} 53. Kd3 {[%clk 0:00:16]} 53... Kd5 {[%clk 0:00:30.3]} 54. Ke2
{[%clk 0:00:15.8]} 54... Ke4 {[%clk 0:00:30.4]} 0-1